fUST/lending_fUST_20250429
["ID","MTS","AMOUNT","RATE_DAILY","PERIOD"]
[359267849,1745880635726,-400.0,0.00020266,2]
[359267850,1745880635736,-400.0,0.00020266,2]
[359267851,1745880635746,-400.0,0.00020266,2]
[359267852,1745880635756,-689.18,0.00020266,2]
[359267853,1745880635768,-400.0,0.00020266,2]
[359267854,1745880635777,-500.0,0.00020266,2]
[359267855,1745880635786,-400.0,0.00020266,2]
[359267856,1745880635796,-500.0,0.00020267,2]
[359267857,1745880635806,-500.0,0.00020267,2]
[359267858,1745880635815,-627.29966823,0.00020267,2]
[359267859,1745880635824,-400.0,0.00020267,2]
[359267860,1745880635836,-500.0,0.00020267,2]
[359267861,1745880635847,-4269.28,0.00020267,2]
[359267862,1745880635856,-400.0,0.00020267,2]
[359267863,1745880635867,-2281.99,0.00020267,2]
[359267864,1745880635876,-500.0,0.00020267,2]
[359267865,1745880635887,-500.0,0.00020267,2]
[359267866,1745880635898,-500.0,0.00020267,2]
[359267867,1745880635909,-638.08112693,0.00020267,2]
[359267868,1745880635918,-564.28,0.00020267,2]
[359267869,1745880635928,-507.74723903,0.00020268,2]
[359267870,1745880635939,-500.0,0.00020268,2]
[359267871,1745880635949,-400.0,0.00020268,2]
[359267872,1745880635959,-400.0,0.00020268,2]
[359267873,1745880635969,-500.0,0.00020268,2]
[359267874,1745880635978,-500.0,0.00020268,2]
[359267875,1745880635987,-500.94954527,0.00020268,2]
[359267876,1745880635996,-400.0,0.00020268,2]
[359267877,1745880636005,-503.19275022,0.00020268,2]
[359267878,1745880636015,-400.0,0.00020268,2]
[359267879,1745880636024,-289.47091283,0.00020268,2]
[359267880,1745880636035,-400.0,0.00020268,2]
[359267881,1745880636044,-500.0,0.00020268,2]
[359267882,1745880636054,-500.0,0.00020268,2]
[359267883,1745880636063,-500.0,0.00020268,2]
[359267884,1745880636073,-514.27718271,0.00020268,2]
[359267885,1745880636082,-400.0,0.00020268,2]
[359267886,1745880636092,-500.0,0.00020268,2]
[359267887,1745880636101,-500.0,0.00020268,2]
[359267888,1745880636111,-500.0,0.00020268,2]
[359267889,1745880636121,-500.0,0.00020268,2]
[359267890,1745880636130,-500.0,0.00020268,2]
[359267891,1745880636139,-500.0,0.00020268,2]
[359267892,1745880636149,-500.0,0.00020268,2]
[359267893,1745880636158,-500.0,0.00020268,2]
[359267894,1745880636168,-438.06432888,0.00020268,2]
[359267895,1745880636187,-61.93567112,0.00020268,2]
[359267896,1745880636196,-400.0,0.00020268,2]
[359267897,1745880636206,-500.0,0.00020268,2]
[359267898,1745880636215,-400.0,0.00020268,2]
[359267899,1745880636226,-500.0,0.00020268,2]
[359267900,1745880636235,-400.0,0.00020268,2]
[359267901,1745880636244,-500.0,0.00020268,2]
[359267902,1745880636255,-500.0,0.00020268,2]
[359267903,1745880636264,-89.76432888,0.00020268,2]
[359267904,1745880636275,-310.23567112,0.00020268,2]
[359267905,1745880636285,-500.0,0.00020268,2]
[359267906,1745880636294,-500.0,0.00020268,2]
[359267907,1745880636303,-500.0,0.00020268,2]
[359267908,1745880636312,-500.0,0.00020268,2]
[359267909,1745880636324,-400.0,0.00020268,2]
[359267910,1745880636334,-500.0,0.00020268,2]
[359267911,1745880636344,-500.96831791,0.00020268,2]
[359267912,1745880636354,-280.52034094,0.00020268,2]
[359267913,1745880636368,-119.47965906,0.00020268,2]
[359267914,1745880636377,-400.0,0.00020268,2]
[359267915,1745880636387,-500.0,0.00020268,2]
[359267916,1745880636397,-400.0,0.00020268,2]
[359267917,1745880636407,-400.0,0.00020268,2]
[359267918,1745880636417,-414.26174377,0.00020268,2]
[359267939,1745880637679,-502.64254952,0.00020167,2]
[359267941,1745880637690,-400.0,0.00020167,2]
[359267943,1745880637699,-279.45914915,0.00020255,2]
[359267945,1745880637709,-550.78268199,0.00020255,2]
[359267947,1745880637719,-85.73825623,0.00020268,2]
[359267949,1745880637728,-400.0,0.00020268,2]
[359267951,1745880637738,-503.55866188,0.00020268,2]
[359267953,1745880637747,-500.0,0.00020268,2]
[359267955,1745880637756,-400.0,0.00020268,2]
[359267957,1745880637766,-415.07038933,0.00020268,2]
[359267960,1745880637778,-84.92961067,0.00020268,2]
[359267962,1745880637787,-500.0,0.00020268,2]
[359267964,1745880637796,-500.0,0.00020268,2]
[359267966,1745880637806,-500.0,0.00020268,2]
[359267968,1745880637815,-400.0,0.00020268,2]
[359267970,1745880637826,-170.32835349,0.00020268,2]
[359267972,1745880637839,-329.67164651,0.00020268,2]
[359267974,1745880637850,-500.0,0.00020268,2]
[359267977,1745880637859,-506.47014123,0.00020268,2]
[359267980,1745880637868,-500.0,0.00020268,2]
[359267983,1745880637878,-500.0,0.00020268,2]
[359267985,1745880637887,-500.0,0.00020268,2]
[359267987,1745880637896,-105.72329738,0.00020268,2]
[359267989,1745880637908,-294.27670262,0.00020268,2]
[359267991,1745880637918,-400.0,0.00020268,2]
[359267993,1745880637928,-400.0,0.00020268,2]
[359267996,1745880637937,-400.0,0.00020268,2]
[359267997,1745880637946,-400.0,0.00020268,2]
[359268000,1745880637956,-500.0,0.00020268,2]
[359268002,1745880637966,-400.0,0.00020268,2]
[359268004,1745880637975,-400.0,0.00020268,2]
[359268006,1745880637985,-400.0,0.00020268,2]
[359268008,1745880637995,-500.0,0.00020268,2]
[359268010,1745880638004,-400.0,0.00020268,2]
[359268012,1745880638014,-400.0,0.00020268,2]
[359268014,1745880638023,-500.0,0.00020268,2]
[359268016,1745880638034,-500.0,0.00020268,2]
[359268018,1745880638043,-126.48983012,0.00020268,2]
[359268020,1745880638055,-373.51016988,0.00020268,2]
[359268022,1745880638064,-500.0,0.00020268,2]
[359268024,1745880638074,-500.0,0.00020268,2]
[359268026,1745880638083,-500.0,0.00020268,2]
[359268028,1745880638092,-500.0,0.00020268,2]
[359268030,1745880638102,-500.0,0.00020268,2]
[359268032,1745880638111,-500.0,0.00020268,2]
[359268034,1745880638120,-500.0,0.00020268,2]
[359268036,1745880638131,-500.0,0.00020268,2]
[359268038,1745880638140,-500.0,0.00020268,2]
[359268040,1745880638149,-500.0,0.00020268,2]
[359268042,1745880638158,-500.0,0.00020268,2]
[359268044,1745880638168,-400.0,0.00020268,2]
[359268046,1745880638179,-500.0,0.00020268,2]
[359268048,1745880638189,-400.0,0.00020268,2]
[359268050,1745880638198,-400.0,0.00020268,2]
[359268052,1745880638208,-400.0,0.00020268,2]
[359268054,1745880638219,-400.0,0.00020268,2]
[359268056,1745880638229,-400.0,0.00020268,2]
[359268058,1745880638238,-500.0,0.00020268,2]
[359268060,1745880638247,-400.0,0.00020268,2]
[359268062,1745880638258,-500.0,0.00020268,2]
[359268064,1745880638268,-400.0,0.00020268,2]
[359268066,1745880638277,-400.0,0.00020268,2]
[359268068,1745880638286,-500.0,0.00020268,2]
[359268070,1745880638295,-400.0,0.00020268,2]
[359268072,1745880638304,-400.0,0.00020268,2]
[359268074,1745880638313,-500.0,0.00020268,2]
[359268076,1745880638322,-500.0,0.00020268,2]
[359268078,1745880638332,-500.0,0.00020268,2]
[359268080,1745880638341,-500.0,0.00020268,2]
[359268082,1745880638350,-500.0,0.00020268,2]
[359268084,1745880638359,-500.0,0.00020268,2]
[359268086,1745880638369,-400.0,0.00020268,2]
[359268088,1745880638378,-500.0,0.00020268,2]
[359268090,1745880638387,-500.0,0.00020268,2]
[359268092,1745880638398,-400.0,0.00020268,2]
[359268094,1745880638407,-203.4994943,0.00020268,2]
[359268096,1745880638416,-400.0,0.00020268,2]
[359268098,1745880638427,-400.0,0.00020268,2]
[359268100,1745880638436,-509.69664392,0.00020268,2]
[359268103,1745880638446,-400.0,0.00020268,2]
[359268104,1745880638455,-1192.89,0.00020268,2]
[359268106,1745880638464,-400.0,0.00020268,2]
[359268108,1745880638474,-400.0,0.00020268,2]
[359268110,1745880638484,-400.0,0.00020268,2]
[359268112,1745880638493,-500.0,0.00020268,2]
[359268114,1745880638502,-500.0,0.00020268,2]
[359268116,1745880638511,-400.0,0.00020268,2]
[359268118,1745880638520,-400.0,0.00020268,2]
[359268120,1745880638529,-500.0,0.00020268,2]
[359268122,1745880638539,-400.0,0.00020268,2]
[359268124,1745880638548,-400.0,0.00020268,2]
[359268126,1745880638557,-400.0,0.00020268,2]
[359268128,1745880638566,-500.0,0.00020268,2]
[359268130,1745880638575,-400.0,0.00020268,2]
[359268132,1745880638584,-500.0,0.00020268,2]
[359268134,1745880638593,-400.0,0.00020268,2]
[359268136,1745880638603,-400.0,0.00020268,2]
[359268138,1745880638612,-400.0,0.00020268,2]
[359268140,1745880638621,-400.0,0.00020268,2]
[359268142,1745880638631,-400.0,0.00020268,2]
[359268144,1745880638640,-500.0,0.00020268,2]
[359268146,1745880638650,-400.0,0.00020268,2]
[359268148,1745880638659,-500.0,0.00020268,2]
[359268150,1745880638668,-500.0,0.00020268,2]
[359268152,1745880638677,-500.0,0.00020268,2]
[359268154,1745880638687,-665.94,0.00020268,2]
[359268156,1745880638696,-500.0,0.00020268,2]
[359268158,1745880638705,-500.0,0.00020268,2]
[359268160,1745880638714,-504.34709964,0.00020268,2]
[359268162,1745880638724,-500.0,0.00020268,2]
[359268164,1745880638733,-500.0,0.00020268,2]
[359268166,1745880638742,-500.0,0.00020268,2]
[359268168,1745880638751,-500.0,0.00020268,2]
[359268170,1745880638761,-500.0,0.00020268,2]
[359268172,1745880638770,-499.53716293,0.00020268,2]
[359268174,1745880638779,-369.14508832,0.00020268,2]
[359268176,1745880638788,-602.97,0.00020268,2]
[359268178,1745880638798,-400.0,0.00020268,2]
[359268180,1745880638808,-176.20522542,0.00020268,2]
[359268182,1745880638817,-400.0,0.00020268,2]
[359268184,1745880638826,-400.0,0.00020268,2]
[359268186,1745880638836,-400.0,0.00020268,2]
[359268188,1745880638845,-400.0,0.00020268,2]
[359268190,1745880638854,-500.0,0.00020268,2]
[359268191,1745880638864,-500.0,0.00020268,2]
[359268192,1745880638873,-500.0,0.00020268,2]
[359268193,1745880638883,-500.0,0.00020268,2]
[359268194,1745880638893,-400.0,0.00020268,2]
[359268195,1745880638901,-400.0,0.00020268,2]
[359268196,1745880638911,-400.0,0.00020268,2]
[359268197,1745880638920,-400.0,0.00020268,2]
[359268198,1745880638930,-400.0,0.00020268,2]
[359268199,1745880638939,-1769.3,0.00020268,2]
[359268200,1745880638949,-500.0,0.00020268,2]
[359268201,1745880638959,-500.0,0.00020268,2]
[359268202,1745880638968,-400.0,0.00020268,2]
[359268203,1745880638978,-400.0,0.00020268,2]
[359268204,1745880638987,-104.3674774,0.00020268,2]
[359268212,1745880639094,-295.6325226,0.00020268,2]
[359268214,1745880639104,-400.0,0.00020268,2]
[359268216,1745880639114,-500.0,0.00020268,2]
[359268218,1745880639123,-500.0,0.00020268,2]
[359268220,1745880639134,-400.0,0.00020268,2]
[359268222,1745880639143,-500.0,0.00020268,2]
[359268224,1745880639153,-400.0,0.00020268,2]
[359268226,1745880639162,-525.7,0.00020268,2]
[359268228,1745880639172,-500.0,0.00020268,2]
[359268230,1745880639184,-400.0,0.00020268,2]
[359268232,1745880639193,-400.0,0.00020268,2]
[359268234,1745880639202,-400.0,0.00020268,2]
[359268236,1745880639211,-400.0,0.00020268,2]
[359268238,1745880639221,-500.0,0.00020268,2]
[359268240,1745880639230,-786.43,0.00020268,2]
[359268242,1745880639240,-506.31,0.00020268,2]
[359268244,1745880639249,-500.0,0.00020268,2]
[359268246,1745880639261,-400.0,0.00020268,2]
[359268248,1745880639270,-500.0,0.00020268,2]
[359268250,1745880639279,-400.0,0.00020268,2]
[359268252,1745880639289,-400.0,0.00020268,2]
[359268254,1745880639298,-400.0,0.00020268,2]
[359268256,1745880639307,-400.0,0.00020268,2]
[359268258,1745880639316,-13.87453115,0.00020268,2]
[359268260,1745880639328,-486.12546885,0.00020268,2]
[359268262,1745880639338,-1000.0,0.00020268,2]
[359268264,1745880639348,-175.20279506,0.00020268,2]
[359268266,1745880639357,-577.6,0.00020268,2]
[359268268,1745880639367,-500.0,0.00020268,2]
[359268270,1745880639377,-500.0,0.00020268,2]
[359268272,1745880639386,-167.25330663,0.00020268,2]
[359268355,1745880640194,-400.0,0.00020167,2]
[359268357,1745880640203,-489.76,0.00020266,2]
[359268359,1745880640213,-232.74669337,0.00020268,2]
[359268361,1745880640223,-400.0,0.00020268,2]
[359268363,1745880640232,-400.0,0.00020268,2]
[359268365,1745880640241,-494.08242231,0.00020268,2]
[359268367,1745880640254,-5.91757769,0.00020268,2]
[359268369,1745880640264,-319.05267379,0.00020268,2]
[359268371,1745880640275,-80.94732621,0.00020268,2]
[359268373,1745880640285,-400.0,0.00020268,2]
[359268375,1745880640294,-400.0,0.00020268,2]
[359268377,1745880640303,-400.0,0.00020268,2]
[359268379,1745880640312,-400.0,0.00020268,2]
[359268381,1745880640321,-400.0,0.00020268,2]
[359268383,1745880640331,-500.0,0.00020268,2]
[359268385,1745880640340,-500.0,0.00020268,2]
[359268387,1745880640350,-411.24,0.00020268,2]
[359268389,1745880640359,-500.0,0.00020268,2]
[359268391,1745880640369,-98.76246574,0.00020268,2]
[359268393,1745880640380,-865.44652036,0.00020268,2]
[359268638,1745880642840,-365.01438036,0.00020167,2]
[359268641,1745880642851,-400.0,0.0002026,2]
[359268642,1745880642861,-400.0,0.00020263,2]
[359268645,1745880642870,-69.46561964,0.00020266,2]
[359268647,1745880642883,-330.53438036,0.00020266,2]
[359268669,1745880643049,-758.1610139,0.00020268,2]
[359268672,1745880643060,-500.0,0.00020268,2]
[359268675,1745880643071,-400.0,0.00020268,2]
[359268677,1745880643081,-400.0,0.00020268,2]
[359268679,1745880643090,-956.03,0.00020268,2]
[359268681,1745880643100,-400.0,0.00020268,2]
[359268683,1745880643109,-400.0,0.00020268,2]
[359268685,1745880643119,-485.99,0.00020268,2]
[359268687,1745880643128,-400.0,0.00020268,2]
[359268690,1745880643138,-400.0,0.00020268,2]
[359268692,1745880643147,-400.0,0.00020268,2]
[359268694,1745880643157,-400.0,0.00020268,2]
[359268696,1745880643167,-400.0,0.00020268,2]
[359268698,1745880643177,-500.0,0.00020268,2]
[359268699,1745880643189,-400.0,0.00020268,2]
[359268702,1745880643199,-400.0,0.00020268,2]
[359268703,1745880643208,-400.0,0.00020268,2]
[359268705,1745880643217,-500.0,0.00020268,2]
[359268707,1745880643227,-500.0,0.00020268,2]
[359268709,1745880643236,-500.0,0.00020268,2]
[359268711,1745880643246,-554.78,0.00020268,2]
[359268713,1745880643255,-151.0,0.00020268,2]
[359268715,1745880643266,-400.0,0.00020268,2]
[359268717,1745880643275,-400.0,0.00020268,2]
[359268719,1745880643284,-500.0,0.00020268,2]
[359268721,1745880643293,-467.18,0.00020268,2]
[359268723,1745880643302,-400.0,0.00020268,2]
[359268725,1745880643311,-500.0,0.00020268,2]
[359268727,1745880643321,-784.95,0.00020268,2]
[359268729,1745880643330,-400.0,0.00020268,2]
[359268731,1745880643339,-500.0,0.00020268,2]
[359268733,1745880643348,-500.0,0.00020268,2]
[359268735,1745880643359,-400.0,0.00020268,2]
[359268737,1745880643368,-400.0,0.00020268,2]
[359268739,1745880643377,-500.0,0.00020268,2]
[359268741,1745880643387,-400.0,0.00020268,2]
[359268743,1745880643396,-400.0,0.00020268,2]
[359268745,1745880643406,-500.0,0.00020268,2]
[359268747,1745880643415,-500.0,0.00020268,2]
[359268749,1745880643425,-151.0,0.00020268,2]
[359268751,1745880643435,-503.40268777,0.00020268,2]
[359268754,1745880643444,-144.86809831,0.00020268,2]
[359268758,1745880643456,-1098.83421943,0.00020268,2]
[359268760,1745880643467,-84.15768226,0.00020268,2]
[359268762,1745880643477,-400.0,0.00020268,2]
[359268764,1745880643486,-574.82,0.00020268,2]
[359268766,1745880643496,-127.21849251,0.00020268,2]
[359268768,1745880643507,-272.78150749,0.00020268,2]
[359268770,1745880643517,-400.0,0.00020268,2]
[359268772,1745880643526,-505.30552431,0.00020268,2]
[359268774,1745880643536,-50.07592759,0.00020268,2]
[359268776,1745880643547,-349.92407241,0.00020268,2]
[359268778,1745880643557,-400.0,0.00020268,2]
[359268780,1745880643566,-514.99881342,0.00020268,2]
[359268782,1745880643576,-198.14124171,0.00020268,2]
[359268890,1745880645865,-287.03597788,0.0002026,2]
[359268892,1745880645875,-400.0,0.00020261,2]
[359268894,1745880645885,-201.85875829,0.00020268,2]
[359268896,1745880645894,-400.0,0.00020268,2]
[359268898,1745880645903,-135.45776512,0.00020268,2]
[359268902,1745880645925,-264.54223488,0.00020268,2]
[359268904,1745880645935,-400.0,0.00020268,2]
[359268906,1745880645944,-132.83699843,0.00020268,2]
[359269127,1745880735535,-300.0,0.00020166,2]
[359269128,1745880735559,-400.0,0.00020167,2]
[359269129,1745880735581,-505.11,0.00020167,2]
[359269130,1745880735603,-888.32,0.00020167,2]
[359269131,1745880735624,-518.23244624,0.00020167,2]
[359269132,1745880735645,-400.0,0.00020167,2]
[359269133,1745880735667,-400.0,0.00020167,2]
[359269134,1745880735688,-400.0,0.00020167,2]
[359269135,1745880735710,-500.0,0.00020167,2]
[359269136,1745880735732,-500.0,0.00020255,2]
[359269137,1745880735754,-400.0,0.00020258,2]
[359269138,1745880735777,-400.0,0.00020258,2]
[359269139,1745880735798,-400.0,0.00020258,2]
[359269140,1745880735822,-3802.53,0.00020258,2]
[359269141,1745880735847,-5198.28,0.00020258,2]
[359269142,1745880735871,-400.0,0.00020258,2]
[359269143,1745880735893,-1239.17,0.00020258,2]
[359269144,1745880735916,-400.0,0.00020258,2]
[359269145,1745880735940,-1128.34,0.00020258,2]
[359269146,1745880735961,-400.0,0.00020258,2]
[359269147,1745880735982,-400.0,0.00020258,2]
[359269148,1745880736322,-400.0,0.00020258,2]
[359269149,1745880736345,-7258.81,0.00020258,2]
[359269150,1745880736366,-400.0,0.0002026,2]
[359269151,1745880736387,-400.0,0.0002026,2]
[359269152,1745880736407,-400.0,0.0002026,2]
[359269153,1745880736430,-400.0,0.0002026,2]
[359269154,1745880736451,-299.8021752,0.0002026,2]
[359269155,1745880736473,-505.19582217,0.0002026,2]
[359269156,1745880736494,-400.0,0.0002026,2]
[359269157,1745880736515,-400.0,0.0002026,2]
[359269158,1745880736538,-400.0,0.0002026,2]
[359269159,1745880736564,-400.0,0.0002026,2]
[359269160,1745880736586,-400.0,0.0002026,2]
[359269161,1745880736609,-400.0,0.00020261,2]
[359269162,1745880736634,-400.0,0.00020261,2]
[359269163,1745880736658,-400.0,0.00020261,2]
[359269164,1745880736680,-772.19,0.00020261,2]
[359269165,1745880736703,-1379.56,0.00020261,2]
[359269166,1745880736727,-1674.87,0.00020261,2]
[359269167,1745880736749,-400.0,0.00020261,2]
[359269168,1745880736774,-452.84,0.00020261,2]
[359269169,1745880736795,-500.0,0.00020263,2]
[359269170,1745880736819,-400.0,0.00020266,2]
[359269171,1745880736841,-1305.61,0.00020266,2]
[359269172,1745880736864,-4091.39,0.00020266,2]
[359269173,1745880736885,-400.0,0.00020266,2]
[359269174,1745880736907,-400.0,0.00020266,2]
[359269175,1745880736929,-400.0,0.00020266,2]
[359269176,1745880736950,-400.0,0.00020266,2]
[359269177,1745880736973,-1208.58,0.00020266,2]
[359269178,1745880736995,-400.0,0.00020266,2]
[359269179,1745880737017,-400.0,0.00020266,2]
[359269180,1745880737042,-2273.62,0.00020266,2]
[359269181,1745880737064,-698.86,0.00020266,2]
[359269182,1745880737087,-638.2,0.00020266,2]
[359269183,1745880737110,-760.66,0.00020266,2]
[359269184,1745880737133,-540.77,0.00020266,2]
[359269185,1745880737155,-400.0,0.00020266,2]
[359269186,1745880737177,-400.0,0.00020266,2]
[359269187,1745880737201,-515.0,0.00020266,2]
[359269188,1745880737227,-629.0,0.00020266,2]
[359269189,1745880737247,-400.0,0.00020266,2]
[359269190,1745880737271,-400.0,0.00020266,2]
[359269191,1745880737299,-1768.05,0.00020266,2]
[359269192,1745880737323,-400.0,0.00020266,2]
[359269193,1745880737347,-446.79300157,0.00020268,2]
[359269194,1745880737371,-500.0,0.00020268,2]
[359269195,1745880737393,-400.0,0.00020268,2]
[359269196,1745880737414,-400.0,0.00020268,2]
[359269197,1745880737436,-503.11617,0.00020268,2]
[359269198,1745880737458,-400.0,0.00020268,2]
[359269199,1745880737482,-503.11617,0.00020268,2]
[359269200,1745880737504,-400.0,0.00020268,2]
[359269201,1745880737526,-400.0,0.00020268,2]
[359269202,1745880737548,-400.0,0.00020268,2]
[359269203,1745880737569,-708.28,0.00020268,2]
[359269204,1745880737592,-409.62,0.00020268,2]
[359269205,1745880737614,-400.0,0.00020268,2]
[359269206,1745880737636,-613.92,0.00020268,2]
[359269207,1745880737659,-400.0,0.00020268,2]
[359269208,1745880737680,-422.46,0.00020268,2]
[359269209,1745880737702,-500.0,0.00020268,2]
[359269210,1745880737724,-705.9,0.00020268,2]
[359269211,1745880737745,-400.0,0.00020268,2]
[359269212,1745880737767,-400.0,0.00020268,2]
[359269213,1745880737790,-400.0,0.00020268,2]
[359269214,1745880737812,-400.0,0.00020268,2]
[359269215,1745880737835,-502.03443162,0.00020268,2]
[359269216,1745880737856,-400.0,0.00020268,2]
[359269217,1745880737877,-400.0,0.00020268,2]
[359269218,1745880737899,-2122.02,0.00020268,2]
[359269219,1745880737921,-400.0,0.00020268,2]
[359269220,1745880737944,-400.0,0.00020268,2]
[359269221,1745880737966,-400.0,0.00020268,2]
[359269222,1745880737989,-500.0,0.00020268,2]
[359269223,1745880738011,-328.34998022,0.00020268,2]
[359269224,1745880738033,-500.0,0.00020268,2]
[359269225,1745880738054,-400.0,0.00020268,2]
[359269226,1745880738076,-400.0,0.00020268,2]
[359269227,1745880738098,-500.0,0.00020268,2]
[359269228,1745880738121,-400.0,0.00020268,2]
[359269229,1745880738143,-400.0,0.00020268,2]
[359269230,1745880738165,-890.63,0.00020268,2]
[359269231,1745880738187,-501.16050173,0.00020268,2]
[359269232,1745880738212,-400.0,0.00020268,2]
[359269233,1745880738234,-500.0,0.00020268,2]
[359269234,1745880738257,-452.32,0.00020268,2]
[359269235,1745880738281,-151.0,0.00020268,2]
[359269236,1745880738304,-559.88,0.00020268,2]
[359269237,1745880738326,-400.0,0.00020268,2]
[359269238,1745880738349,-400.0,0.00020268,2]
[359269239,1745880738371,-450.98,0.00020272,2]
[359269240,1745880738394,-990.21,0.00020272,2]
[359269241,1745880738416,-557.55,0.00020272,2]
[359269242,1745880738441,-400.0,0.00020272,2]
[359269243,1745880738464,-400.0,0.00020272,2]
[359269244,1745880738487,-400.0,0.00020272,2]
[359269245,1745880738511,-400.0,0.00020272,2]
[359269246,1745880738535,-400.0,0.00020272,2]
[359269247,1745880738559,-500.0,0.00020272,2]
[359269248,1745880738583,-400.0,0.00020272,2]
[359269249,1745880738607,-151.0,0.00020272,2]
[359269250,1745880738632,-503.11617,0.00020272,2]
[359269251,1745880738663,-503.11617,0.00020272,2]
[359269252,1745880738690,-151.0,0.00020272,2]
[359269253,1745880738712,-500.0,0.00020273,2]
[359269254,1745880738735,-500.0,0.00020273,2]
[359269255,1745880738758,-500.0,0.00020273,2]
[359269256,1745880738780,-500.0,0.00020273,2]
[359269257,1745880738803,-500.0,0.00020273,2]
[359269258,1745880738826,-400.0,0.00020298,2]
[359269259,1745880738849,-1392.23590184,0.00020368,2]
[359269260,1745880738872,-505.11,0.00020441,2]
[359269261,1745880738894,-888.32,0.00020441,2]
[359269262,1745880738916,-400.0,0.00020441,2]
[359269263,1745880738939,-400.0,0.00020441,2]
[359269264,1745880738962,-2369.52,0.0002053,3]
[359269265,1745880738986,-1184.76,0.0002053,3]
[359269266,1745880739008,-987.3,0.0002053,3]
[359269267,1745880739031,-493.65,0.0002053,3]
[359269268,1745880739053,-246.83,0.0002053,3]
[359269269,1745880739077,-740.51,0.0002053,3]
[359269270,1745880739115,-400.0,0.00020532,2]
[359269271,1745880739137,-400.0,0.00020532,2]
[359269272,1745880739161,-534.28,0.00020532,2]
[359269273,1745880739185,-1154.37,0.00020532,2]
[359269274,1745880739209,-400.0,0.00020532,2]
[359269275,1745880739232,-920.89,0.00020532,2]
[359269276,1745880739255,-400.0,0.00020532,2]
[359269277,1745880739280,-400.0,0.00020532,2]
[359269278,1745880739303,-3802.53,0.00020532,2]
[359269279,1745880739327,-5198.28,0.00020532,2]
[359269280,1745880739350,-400.0,0.00020532,2]
[359269281,1745880739373,-1239.17,0.00020532,2]
[359269282,1745880739394,-400.0,0.00020532,2]
[359269283,1745880739416,-1128.34,0.00020532,2]
[359269284,1745880739436,-400.0,0.00020532,2]
[359269285,1745880739458,-400.0,0.00020532,2]
[359269286,1745880739480,-400.0,0.00020532,2]
[359269287,1745880739502,-7258.81,0.00020532,2]
[359269288,1745880739522,-400.0,0.00020534,2]
[359269289,1745880739543,-400.0,0.00020534,2]
[359269290,1745880739710,-400.0,0.00020534,2]
[359269291,1745880739736,-707.31,0.00020534,2]
[359269292,1745880739757,-206.0794366,0.00020534,2]
[359269293,1745880739779,-400.0,0.00020534,2]
[359269294,1745880739800,-400.0,0.00020534,2]
[359269295,1745880739821,-400.0,0.00020534,2]
[359269296,1745880739842,-400.0,0.00020534,2]
[359269297,1745880739864,-400.0,0.00020534,2]
[359269298,1745880739886,-400.0,0.00020534,2]
[359269299,1745880739907,-400.0,0.00020534,2]